[Event "55th Biel Festival ATO 2022"]
[Site "Biel"]
[Date "2022.07.21"]
[Round "8.10"]
[White "Corbat, Philippe"]
[Black "Abdulrahim, Salem"]
[Result "0-1"]
[ECO "B20"]
[WhiteElo "1902"]
[BlackElo "1662"]
[Annotator "TA"]
[PlyCount "60"]
[EventDate "2022.07.13"]
[EventType "swiss"]
[EventCountry "SUI"]
[SourceTitle "playchess.com"]
[Source "ChessBase"]
[SourceQuality "1"]
[TimeControl "40/5400+30:1800+30"]

{[%evp 9,60,-20,-12,-11,-15,-22,-14,-19,-14,-10,-7,0,-2,-8,0,0,5,0,5,-197,-221,-238,-222,-400,-401,-446,-452,-458,-472,-469,-468,-495,-452,-521,-385,-489,-396,-401,-410,-432,-439,-534,-368,-557,-549,-667,-711,-681,-662,-651,-561,-502,-499]} 1. e4 {[%emt 0:00:06]} c5 {[%emt 0:00:05]} 2. a3 {[%emt 0:00:14]} g6 {[%emt 0:00:35]} 3. h4 {[%emt 0:00:14]} h5 {[%emt 0:06:45]} 4. Nc3 {[%emt 0:01:13]} Bg7 {[%emt 0:00:34]} 5. Bc4 {[%emt 0:01:09]} Nc6 {[%emt 0:00:56]} 6. d3 {[%emt 0:02:52] B20: Sicilian: Unusual White 2nd moves.} Nf6 {[%emt 0:00:52] [#]} 7. Bf4 $146 {[%emt 0:02:42]} ({Predecessor:} 7. Bg5 d6 8. Qd2 Rb8 9. Nge2 O-O 10. O-O-O b5 11. Ba2 b4 12. axb4 Nxb4 13. Bb3 {0-1 (22) Riehle,M (2336)-Le,T (2514) Chess.com INT 2021}) 7... d6 {[%emt 0:00:42]} 8. Qd2 {[%emt 0:03:07] The position is equal.} a6 {[%emt 0:05:45]} 9. Nf3 {[%emt 0:09:25]} O-O {[%emt 0:00:55]} 10. Bh6 {[%emt 0:03:35]} Ng4 {[%emt 0:10:13]} 11. Bxg7 {[%emt 0:00:41]} Kxg7 {[%emt 0:00:02]} 12. Ng5 {[%emt 0:06:24]} Nge5 {[%emt 0:04:00]} 13. Ba2 {[%emt 0:05:40]} f6 {[%emt 0:07:47]} 14. Ne6+ {[%emt 0:01:21] [#] This costs White the game.} (14. Nh3 $11 {and White is okay.}) 14... Bxe6 $19 {[%emt 0:00:17]} 15. Bxe6 {[%emt 0:00:08]} Nd4 {[%emt 0:00:10] Pair of Knights!} 16. O-O-O $2 {[%emt 0:07:12]} (16. f4 Nef3+ 17. gxf3 Nxf3+ 18. Ke2 Nxd2 19. Kxd2) 16... Nxe6 {[%emt 0:00:25]} 17. f4 {[%emt 0:00:14]} Ng4 {[%emt 0:02:19]} 18. f5 {[%emt 0:01:59]} gxf5 {[%emt 0:03:33]} 19. exf5 {[%emt 0:00:09]} Nd4 {[%emt 0:00:18][%cal Be6d4,Bd4c6,Bc6e5][%mdl 32]} 20. Nd5 {[%emt 0:01:49]} Rh8 {[%emt 0:15:00]} 21. Rhf1 {[%emt 0:08:15]} b5 {[%emt 0:01:40]} 22. Rde1 {[%emt 0:04:58]} Nc6 {[%emt 0:00:22]} 23. Nf4 {[%emt 0:01:41] [#] aiming for Ne6+.} Qd7 {[%emt 0:06:13]} 24. Qd1 {[%emt 0:02:44][%cal Of4h5]} Nce5 {[%emt 0:12:26]} 25. c3 {[%emt 0:09:27]} c4 {[%emt 0:00:16]} 26. dxc4 {[%emt 0:04:10]} (26. d4 $142 Nd3+ 27. Nxd3 cxd3 28. Re6) 26... bxc4 {[%emt 0:00:16] Black is clearly winning.} 27. Nxh5+ {[%emt 0:01:22]} Rxh5 {[%emt 0:02:45]} 28. Rxe5 {[%emt 0:02:44]} Nxe5 {[%emt 0:00:02]} 29. Qxh5 {[%emt 0:01:01][%cal Of1f3]} Qe8 {[%emt 0:00:36]} 30. Qe2 {[%emt 0:18:54]} Rb8 {[%emt 0:19:41] Weighted Error Value: White=0.53/Black=0.30} 0-1

[Event "55th Biel Festival ATO 2022"]
[Site "Biel"]
[Date "2022.07.22"]
[Round "9.1"]
[White "Harisurya Bharadwaj Gundepudi"]
[Black "Al Helaoy Majed"]
[Result "1-0"]
[ECO "B07"]
[WhiteElo "1924"]
[BlackElo "2015"]
[Annotator "TA"]
[PlyCount "103"]
[EventDate "2022.07.13"]
[EventType "swiss"]
[EventCountry "SUI"]
[SourceTitle "playchess.com"]
[Source "ChessBase"]
[SourceQuality "1"]
[TimeControl "40/5400+30:1800+30"]

{[%evp 9,103,24,33,45,59,9,8,-18,47,52,98,87,98,86,111,88,116,65,65,64,133,68,166,160,181,152,157,150,159,154,287,279,269,31,685,258,518,526,704,543,428,161,161,164,133,105,95,25,75,0,163,164,163,148,267,213,206,223,222,195,315,313,370,366,458,458,443,447,474,464,664,651,1004,1001,986,962,959,926,8002,10601,6988,6841,6821,5952,29979,29980,29982,29982,29981,29982,29981,29977,29976,29974,29986,29986]} 1. d4 {[%emt 0:00:09]} g6 {[%emt 0:01:17]} 2. Bf4 {[%emt 0:00:13]} Nf6 {[%emt 0:00:47]} 3. Nc3 {[%emt 0:00:07]} d6 {[%emt 0:01:28]} 4. e4 {[%emt 0:00:12]} a6 {[%emt 0:01:31]} 5. Be2 {[%emt 0:00:18]} Bg7 {[%emt 0:01:18]} 6. Qd2 {[%emt 0:00:21] B07: Pirc Defence: Miscellaneous Systems.} b5 {[%emt 0:07:02]} 7. a3 {[%emt 0:03:46] [#]} (7. Bf3 $14 c6 8. Nge2) 7... Bb7 $146 {[%emt 0:00:44]} ({Predecessor:} 7... O-O 8. Bh6 Bb7 9. Bf3 c6 {0-1 (9) Asikanius,K (1778)-Mikkonen,M (1923) ICCF email 2017}) 8. Bf3 {[%emt 0:01:24] The position is equal.} Nfd7 {[%emt 0:05:45] Against e5} (8... Nc6 $11) 9. Bh6 $14 {[%emt 0:01:18]} Kf8 {[%emt 0:02:22]} (9... Bxh6 $14 10. Qxh6 Nc6) 10. h4 $16 {[%emt 0:00:13][%cal Bh2h4,Bh4h5][%mdl 32]} c5 {[%emt 0:03:50]} 11. h5 {[%emt 0:00:48][%cal Oe4e5] White is more active.} Nc6 {[%emt 0:06:49] Against e5} 12. dxc5 {[%emt 0:03:29]} Nxc5 {[%emt 0:01:50]} 13. Nge2 {[%emt 0:00:37]} ({Better is} 13. Be2 $16) 13... Ne5 $14 {[%emt 0:04:14]} 14. Ng3 {[%emt 0:03:50]} Rc8 {[%emt 0:02:17]} (14... Nc4 $14 15. Qc1 f6) 15. Be2 {[%emt 0:07:16]} (15. Bxg7+ $1 $16 Kxg7 16. Be2) 15... Ne6 {[%emt 0:10:27]} (15... Rg8 $1 $14) 16. Bxg7+ $1 $18 {[%emt 0:01:02]} Nxg7 {[%emt 0:04:47]} 17. hxg6 {[%emt 0:00:21]} fxg6 {[%emt 0:02:21]} 18. O-O-O {[%emt 0:00:14]} Qa5 {[%emt 0:04:16]} 19. f4 {[%emt 0:03:08]} Nc6 {[%emt 0:08:04]} (19... Nf7 $16 {keeps fighting.} 20. Rhf1 Ne8) 20. f5 {[%emt 0:01:21]} b4 {[%emt 0:02:09]} 21. fxg6 $2 {[%emt 0:01:05]} ({White must play} 21. axb4 $1 $18 Nxb4 22. Kb1 gxf5 23. Rhf1) 21... Qe5 {[%emt 0:07:27][%mdl 8192]} (21... bxc3 $14 22. Qf4+ Ke8 23. Rxh7 (23. Qf7+ Kd7 $15) 23... Rg8 24. Qf7+ (24. Bc4 cxb2+ 25. Kxb2 Ne5 $11) 24... Kd7 25. Bg4+ Kc7 26. Bxc8 Rxc8) 22. Qd5 $2 {[%emt 0:04:10]} Qxd5 $2 {[%emt 0:06:43]} (22... e6 23. Qxe5 (23. Qxd6+ Qxd6 24. Rxd6 Ke7 $18) 23... Nxe5) 23. Nxd5 {[%emt 0:00:06] And now Rdf1+ would win.} bxa3 {[%emt 0:00:07]} 24. bxa3 {[%emt 0:00:08]} Ne5 {[%emt 0:01:05]} 25. Rxh7 $2 {[%emt 0:00:26]} (25. Rdf1+ Ke8 26. Rxh7) 25... Nxg6 {[%emt 0:01:11] [#]} 26. Rf1+ $1 {[%emt 0:02:20]} Kg8 {[%emt 0:00:31]} 27. Rxh8+ {[%emt 0:03:38]} Kxh8 {[%emt 0:00:02]} 28. Bg4 {[%emt 0:01:29]} (28. Kd2) (28. Rh1+ $16 Kg8 29. Rh6) 28... Rc4 {[%emt 0:01:48]} (28... Rc5 $11) 29. Be2 {[%emt 0:00:45]} (29. Bf5 $16 Nxf5 30. Nxf5) 29... Bxd5 $2 {[%emt 0:00:33] Black is on the road to losing.} (29... Rc8 $1 $11 {and Black is okay.}) 30. exd5 {[%emt 0:00:15]} Rd4 {[%emt 0:04:31]} 31. Bxa6 {[%emt 0:00:13] Hoping for Ne2.} Kg8 {[%emt 0:04:05]} (31... Ne5 $16 {is a better defense.} 32. Bb5 Rxd5) 32. Be2 {[%emt 0:05:42]} Ne5 {[%emt 0:04:14]} 33. Rd1 {[%emt 0:04:05]} Ra4 {[%emt 0:00:44]} 34. Kb2 {[%emt 0:00:19]} Kf8 {[%emt 0:00:39]} (34... Nc4+ {was called for.} 35. Bxc4 Rxc4) 35. Kb3 {[%emt 0:00:11]} Ra5 {[%emt 0:00:13]} 36. a4 {[%emt 0:00:39]} Ne8 {[%emt 0:00:45]} 37. Rf1+ {[%emt 0:00:28]} Nf6 {[%emt 0:00:04]} 38. Bb5 {[%emt 0:00:55]} Neg4 {[%emt 0:00:25]} 39. Nf5 {[%emt 0:00:39] Prevents Ne3.} Ne5 {[%emt 0:01:04] [#]} (39... Kf7 $142 40. c4 Ra7) 40. Nxd6 $1 {[%emt 0:00:12][%mdl 512]} Kg8 {[%emt 0:00:08]} (40... Ra8 41. Ne4) 41. Nc4 {[%emt 0:30:23]} Nxc4 {[%emt 0:03:25]} 42. Kxc4 {[%emt 0:00:00][%mdl 4096] Endgame KRB-KRN} Ra7 {[%emt 0:00:48]} 43. Kd4 {[%emt 0:00:00]} Nd7 {[%emt 0:02:42]} 44. Bxd7 {[%emt 0:00:00]} Rxd7 {[%emt 0:00:01] KR-KR} 45. a5 {[%emt 0:00:00] White wants to mate with a6.} e6 {[%emt 0:00:34]} 46. c4 {[%emt 0:00:00][%cal Bc2c4,Bc4d5][%mdl 32] White threatens a6 and mate.} exd5 {[%emt 0:00:22]} 47. cxd5 {[%emt 0:00:00] White mates.} Rg7 {[%emt 0:00:42]} 48. Rf2 {[%emt 0:00:00]} Rg4+ {[%emt 0:00:02]} 49. Kc5 {[%emt 0:00:00]} Ra4 {[%emt 0:00:11]} 50. Kb5 {[%emt 0:00:00]} Rd4 {[%emt 0:00:04]} 51. Rf5 {[%emt 0:00:00]} Rg4 {[%emt 0:00:03]} 52. a6 {[%emt 0:00:00] Weighted Error Value: White=0.42/Black=0.78} 1-0

[Event "55th Biel Festival ATO 2022"]
[Site "Biel"]
[Date "2022.07.22"]
[Round "9.2"]
[White "Stijve Niels"]
[Black "Manmay Chopra"]
[Result "0-1"]
[ECO "B00"]
[WhiteElo "1958"]
[BlackElo "1934"]
[Annotator "TA"]
[PlyCount "98"]
[EventDate "2022.07.13"]
[EventType "swiss"]
[EventCountry "SUI"]
[SourceTitle "playchess.com"]
[Source "ChessBase"]
[SourceQuality "1"]
[TimeControl "40/5400+30:1800+30"]

{[%evp 9,97,31,23,42,39,18,54,1,4,16,31,10,116,116,116,116,112,122,141,159,144,68,48,55,87,79,65,17,37,-37,-39,-61,-56,-52,16,6,59,-20,115,117,259,-2,-14,-11,-11,-13,-20,-84,66,55,91,100,85,0,0,-80,-79,-80,-80,-80,-79,-80,-47,-92,-92,-92,-79,-81,-82,-90,-73,-79,-79,-90,-84,-99,-101,-108,-100,-1955,-1826,-1514,-1473,-29978,-29978,-29990,-29991,-29992,-29993,-29999]} 1. e4 {[%emt 0:00:02]} Nc6 {[%emt 0:17:13]} 2. d4 {[%emt 0:01:19]} d5 {[%emt 0:00:11]} 3. Nc3 {[%emt 0:00:14]} dxe4 {[%emt 0:00:06]} 4. d5 {[%emt 0:00:10]} Ne5 {[%emt 0:00:02]} 5. Bf4 {[%emt 0:00:20]} Ng6 $1 {[%emt 0:01:40]} 6. Bg3 {[%emt 0:00:15] B00: Queen's Fianchetto Defence, Nimzowitsch Defence.} a6 {[%emt 0:08:23] Against Nb5} 7. h4 {[%emt 0:01:38] h5 is the strong threat.} h5 {[%emt 0:00:56]} 8. Nh3 {[%emt 0:20:11] [#]} (8. Qe2 $14) 8... Bxh3 $146 {[%emt 0:22:02]} ({Predecessor:} 8... Bg4 9. Be2 Nf6 10. Ng5 Bxe2 11. Qxe2 Qd6 12. Bxd6 exd6 13. Ngxe4 O-O-O 14. Nxf6 gxf6 {1-0 (22) Hamilton,T-Gomez Cabato,J Dos Hermanas 2003}) 9. Rxh3 {[%emt 0:01:20]} f5 {[%emt 0:06:10][%cal Oe7e6]} 10. Bc4 {[%emt 0:16:30][%cal Od5d6]} f4 {[%emt 0:04:29]} (10... Nf6) (10... Nf6 $11) 11. Bh2 $16 {[%emt 0:00:56]} Nf6 {[%emt 0:00:27] [#]} 12. Nxe4 $1 {[%emt 0:12:10][%mdl 512] And now Ng5 would win.} Nxe4 {[%emt 0:04:32]} 13. Qd3 {[%emt 0:04:26]} Qd6 {[%emt 0:00:47]} 14. Qxe4 {[%emt 0:00:44]} O-O-O {[%emt 0:01:43]} 15. O-O-O {[%emt 0:03:25]} (15. Kf1 $16) 15... e5 $14 {[%emt 0:00:41]} 16. Rb3 {[%emt 0:12:40]} Nxh4 {[%emt 0:03:13]} 17. g3 {[%emt 0:01:11]} Ng6 {[%emt 0:00:14]} 18. Re1 {[%emt 0:03:35]} (18. Bd3 $14 {deserves consideration.} Rh6 19. c4) 18... fxg3 {[%emt 0:02:34]} 19. Rxg3 {[%emt 0:05:59]} ({Better is} 19. fxg3 $14 h4 20. Qe3 (20. Bd3 hxg3 21. Bxg3 Nf4 $11)) 19... Rh6 $1 $15 {[%emt 0:01:25]} 20. Reg1 {[%emt 0:05:41][%cal Rg3g6]} Nf4 {[%emt 0:03:39]} 21. Rf3 {[%emt 0:00:16]} Rf6 {[%emt 0:09:26]} (21... Qf6 $15) 22. Rg5 $1 $11 {[%emt 0:00:16]} b5 {[%emt 0:01:02] [#]} ({Black should play} 22... Qd7 $11) 23. Bb3 {[%emt 0:03:49]} ({Don't blunder} 23. Qxe5 $2 Qxe5 24. Rxe5 Bd6 $19) (23. Rxe5 $1 $14 bxc4 24. Rxf4 (24. Bxf4 g6 $11)) 23... g6 {[%emt 0:02:22]} (23... Qb4 $11 {keeps the balance.} 24. Qxb4 (24. Qxe5 Re6 $15) 24... Bxb4 25. Bxf4 Rxf4 26. Rxf4 exf4) 24. Rxe5 $16 {[%emt 0:01:15]} Bh6 {[%emt 0:02:18]} 25. Bxf4 $2 {[%emt 0:01:32]} (25. Kb1 $1 $18) 25... Rxf4 $11 {[%emt 0:00:25]} 26. Rxf4 {[%emt 0:01:10][%cal Oc1b1] aiming for Kb1!} Rf8 {[%emt 0:00:28][%mdl 64] Pin} 27. Kb1 {[%emt 0:01:38]} Rxf4 {[%emt 0:00:23]} 28. Qe2 {[%emt 0:01:08] [#]} (28. Qe1 $11 Rxf2 29. Rxh5 gxh5 30. Qxf2) 28... Qf6 {[%emt 0:00:46]} (28... Rxf2 $1 $17 29. Re8+ Kd7 30. Qxf2 Kxe8) 29. Re8+ $14 {[%emt 0:00:34]} Kb7 {[%emt 0:00:14]} 30. d6 $1 {[%emt 0:00:26]} Qxd6 {[%emt 0:00:32][%cal Of4f2] [#] Threatens to win with ...Rxf2!} 31. Re6 {[%emt 0:00:05]} (31. a4 $1 $16 {[%cal Ra4b5]}) 31... Qd4 $40 {[%emt 0:02:30][%mdl 128] White needs to defend precisely.} 32. c3 {[%emt 0:01:01]} (32. a4 $1 $11 Rxf2 33. Qe1 bxa4 34. Bxa4) 32... Qxf2 $17 {[%emt 0:00:57]} 33. Bd5+ {[%emt 0:00:26]} Ka7 {[%emt 0:00:01] White must now prevent ...Qg1+.} 34. Qxf2+ {[%emt 0:00:36]} Rxf2 {[%emt 0:00:15]} 35. Rxg6 {[%emt 0:00:01][%mdl 4096] Endgame KRB-KRB} Bf4 {[%emt 0:00:18]} 36. Rg7 {[%emt 0:00:55]} h4 {[%emt 0:00:31] Strongly threatening ...h3.} 37. Rh7 {[%emt 0:00:20]} Bg3 {[%emt 0:00:12]} 38. Rh6 {[%emt 0:00:35]} Rh2 {[%emt 0:02:18]} 39. Be6 {[%emt 0:00:30]} Rd2 {[%emt 0:00:32] Hoping for ...Rd6.} 40. Bc8 {[%emt 0:00:36]} a5 {[%emt 0:00:41]} 41. Ra6+ {[%emt 0:07:12]} Kb8 {[%emt 0:00:31]} 42. Bg4 {[%emt 0:00:09]} Kb7 {[%emt 0:03:02]} 43. Rxa5 {[%emt 0:00:58] [#]} c6 {[%emt 0:01:17] Black is more active.} 44. a4 $2 {[%emt 0:01:50][%mdl 8192]} (44. Ra3 $17) 44... Bc7 $19 {[%emt 0:00:04]} 45. Kc1 {[%emt 0:00:16]} Rf2 {[%emt 0:00:30]} 46. Bc8+ {[%emt 0:12:28]} Kxc8 {[%emt 0:00:08] Black mates.} 47. Ra6 {[%emt 0:01:01]} h3 {[%emt 0:00:25]} 48. Rxc6 {[%emt 0:00:58]} h2 {[%emt 0:00:09][%cal Rh2h1]} 49. axb5 {[%emt 0:02:06]} h1=R# {[%emt 0:00:08] What a fight!  Weighted Error Value: White=0.56/Black=0.28 (precise)} 0-1

[Event "55th Biel Festival ATO 2022"]
[Site "Biel"]
[Date "2022.07.22"]
[Round "9.3"]
[White "Hari Charan Sai Kalluri"]
[Black "Smeets Kobe"]
[Result "0-1"]
[ECO "D31"]
[WhiteElo "2041"]
[BlackElo "1963"]
[Annotator "TA"]
[PlyCount "62"]
[EventDate "2022.07.13"]
[EventType "swiss"]
[EventCountry "SUI"]
[SourceTitle "playchess.com"]
[Source "ChessBase"]
[SourceQuality "1"]
[TimeControl "40/5400+30:1800+30"]

{[%evp 21,62,-2,-18,-19,-8,-37,-19,-19,-17,-27,-22,-36,-34,-42,-34,-40,0,0,-26,-20,184,173,176,170,170,168,162,125,125,125,133,-112,-110,-158,-151,-151,-148,-283,-300,-301,-285,-324,-323]} 1. d4 {[%emt 0:01:55]} d5 {[%emt 0:00:03]} 2. c4 {[%emt 0:00:45]} e6 {[%emt 0:00:11]} 3. Nc3 {[%emt 0:00:10]} c6 {[%emt 0:00:08]} 4. e4 {[%emt 0:00:09]} dxe4 {[%emt 0:00:06]} 5. Nxe4 {[%emt 0:00:04]} Bb4+ {[%emt 0:00:06]} 6. Bd2 {[%emt 0:00:38][%cal Bc1d2,Bd2b4,Bb4c3][%mdl 32]} Qxd4 {[%emt 0:00:06]} 7. Bxb4 {[%emt 0:00:23]} Qxe4+ {[%emt 0:00:08]} 8. Be2 {[%emt 0:00:03]} Na6 {[%emt 0:00:14]} 9. Bc3 {[%emt 0:04:26]} f6 {[%emt 0:09:49]} 10. Nf3 {[%emt 0:10:35] 10.Qd6 is not played anymore.} Ne7 {[%emt 0:03:00]} 11. O-O {[%emt 0:04:08]} O-O {[%emt 0:04:41]} 12. b4 {[%emt 0:05:04] D31: Queen's Gambit Declined: Semi-Slav without ...Nf6 (+ Marshall Gambit and Noteboom) and Exchange Variation lines without ...Nf6.} e5 {[%emt 0:09:08]} 13. b5 {[%emt 0:22:48] [#]} cxb5 $146 {[%emt 0:05:13]} ({Predecessor:} 13... Nc5 14. Nd2 Qg6 15. Bb4 b6 16. Bh5 Qf5 17. Bf3 Be6 18. Qe2 Rad8 19. Nb3 cxb5 20. cxb5 {½-½ (36) Vosselman,J (2347)-Petraitis,G (2500) ICCF email 2002}) 14. cxb5 {[%emt 0:00:13] The position is equal.} Nc7 {[%emt 0:14:15]} 15. Bd3 {[%emt 0:10:54]} Qg4 {[%emt 0:04:09]} 16. h3 {[%emt 0:12:25]} Qh5 {[%emt 0:26:03]} 17. Bb4 {[%emt 0:02:37]} Re8 {[%emt 0:02:06]} 18. Rc1 $1 {[%emt 0:08:53]} Ne6 {[%emt 0:04:30] ...Nf4 is the strong threat.} (18... Ned5 $5 {[%cal Re5e4]} 19. Bd6 Ne6 $15) 19. Bc4 $36 {[%emt 0:04:15][%mdl 2048] White is more active.} Kh8 {[%emt 0:03:43]} 20. Re1 {[%emt 0:00:05][%cal Of3e5]} Nf4 $2 {[%emt 0:01:50] [#]} (20... Qg6 $11 {and Black has nothing to worry.} 21. Bd3 Qf7) 21. Nxe5 $1 $18 {[%emt 0:02:06][%mdl 512]} fxe5 {[%emt 0:06:55]} 22. Qxh5 {[%emt 0:00:09]} Nxh5 {[%emt 0:00:04][%cal Bf4h5,Bh5f4,Bf4e2,Be2c1][%mdl 32]} 23. Rxe5 {[%emt 0:00:55]} Nf4 {[%emt 0:01:09][%cal Oc8e6]} 24. Rxe7 {[%emt 0:01:51]} Rxe7 {[%emt 0:01:17]} 25. Bxe7 {[%emt 0:00:01] Threatens to win with Bg5. This bishop pair is nice.} Be6 {[%emt 0:00:45] Strongly threatening ...Rc8.} 26. Bxe6 {[%emt 0:04:01]} (26. Bf1 $16) 26... Ne2+ $17 {[%emt 0:00:08]} 27. Kh2 {[%emt 0:00:30]} (27. Kf1 $142 Nxc1 28. Bg5) 27... Nxc1 {[%emt 0:00:06]} 28. Bd5 {[%emt 0:00:15]} Re8 {[%emt 0:00:40]} 29. Bh4 {[%emt 0:02:00]} (29. Ba3 $17 Re5 30. Bc4) 29... Re5 $19 {[%emt 0:00:41] Black has a decisive advantage.} 30. Bxb7 {[%emt 0:01:30]} Rxb5 {[%emt 0:00:05]} 31. Ba6 {[%emt 0:01:28]} Ra5 {[%emt 0:00:05] Weighted Error Value: White=0.35/Black=0.23 (precise)} 0-1